[Event "GER-ch Youth-U18w 2023"]
[Site "Willingen"]
[Date "2023.05.29"]
[Round "3.1"]
[White "Groeschel, Karoline"]
[Black "Doll, Rebecca"]
[Result "1-0"]
[Annotator "NA RC"]
[ECO "C92"]
[WhiteElo "1892"]
[BlackElo "1918"]
[PlyCount "122"]
[EventDate "2022.06.05"]
[EventType "swiss"]
[EventRounds "9"]
[EventCountry "GER"]
[SourceTitle "playchess.com"]
[Source "ChessBase"]
[SourceQuality "1"]
[TimeControl "40/4500+30:900+30"]

1. e4 {[%emt 0:00:00]} e5 {[%emt 0:00:00]} 2. Nf3 {[%emt 0:00:00]} Nc6 {[%emt 0:00:00]} 3. Bb5 {[%emt 0:00:00]} a6 {[%emt 0:00:00]} 4. Ba4 {[%emt 0:00:00]} Nf6 {[%emt 0:00:00]} 5. O-O {[%emt 0:00:00]} Be7 {[%emt 0:00:00]} 6. Re1 {[%emt 0:00:00]} b5 {[%emt 0:00:00]} 7. Bb3 {[%emt 0:00:00]} d6 {[%emt 0:00:00]} 8. c3 {[%emt 0:00:00]} O-O {[%emt 0:00:00]} 9. h3 {[%emt 0:00:00]} Bb7 {[%emt 0:00:00]} 10. d4 {[%emt 0:00:00]} Re8 {[%emt 0:00:00]} 11. Nbd2 {[%emt 0:00:00]} Bf8 {[%emt 0:00:00]} 12. a4 {[%emt 0:00:00]} Na5 {[%emt 0:00:00]} 13. Bc2 {[%emt 0:00:00]} b4 {[%emt 0:00:00]} 14. d5 {[%emt 0:08:26]} bxc3 {[%emt 0:00:00]} 15. bxc3 {[%emt 0:00:06]} c6 {[%emt 0:00:00]} 16. c4 {[%emt 0:05:04]} Qc7 {[%emt 0:00:00]} 17. Bd3 {[%emt 0:03:03]} Reb8 {[%emt 0:13:25]} 18. Nf1 {[%emt 0:10:42]} h6 {[%emt 0:03:42]} 19. Be3 {[%emt 0:02:26]} Bc8 {[%emt 0:14:59]} 20. N3d2 {[%emt 0:12:25]} Rb4 {[%emt 0:11:28]} 21. Qc2 {[%emt 0:15:33]} Rab8 {[%emt 0:09:19]} 22. Reb1 {[%emt 0:01:41]} c5 {[%emt 0:03:13]} 23. f4 {[%emt 0:04:51]} Nd7 {[%emt 0:05:12]} 24. f5 {[%emt 0:01:33]} Be7 {[%emt 0:00:49]} 25. Nh2 {[%emt 0:04:28]} Qd8 {[%emt 0:02:10]} 26. Nhf3 {[%emt 0:00:16]} Nf8 {[%emt 0:01:35]} 27. Rxb4 {[%emt 0:02:18]} Rxb4 {[%emt 0:01:34]} 28. Rb1 {[%emt 0:01:08]} Qb6 {[%emt 0:00:48]} 29. Rxb4 {[%emt 0:02:19]} Qxb4 {[%emt 0:00:07]} 30. Nb1 {[%emt 0:00:39]} Qb3 {[%emt 0:10:03]} 31. Qxb3 {[%emt 0:05:14]} Nxb3 {[%emt 0:00:03]} 32. Bc2 {[%emt 0:03:11]} Nd4 {[%emt 0:01:33]} 33. Bd1 {[%emt 0:02:05]} Nd7 {[%emt 0:03:37]} 34. a5 {[%emt 0:01:48]} Nf6 {[%emt 0:01:47]} 35. Bxd4 {[%emt 0:02:51]} cxd4 {[%emt 0:00:51]} 36. Bc2 {[%emt 0:00:25]} Bd8 {[%emt 0:01:05]} 37. c5 {[%emt 0:00:28]} dxc5 {[%emt 0:01:39]} 38. Nxe5 {[%emt 0:00:24]} Bxa5 {[%emt 0:00:37]} 39. Nc6 {[%emt 0:00:41]} d3 {[%emt 0:04:02]} 40. Bxd3 {[%emt 0:00:36]} c4 {[%emt 0:00:39]} 41. Nxa5 {[%emt 0:00:00]} cxd3 {[%emt 0:00:00]} 42. Nd2 {[%emt 0:00:00]} Kf8 {[%emt 0:00:00]} 43. Kf2 {[%emt 0:00:00]} Bd7 {[%emt 0:00:00]} 44. Ke3 {[%emt 0:00:00]} Bb5 {[%emt 0:00:08]} 45. Nac4 {[%emt 0:00:00]} Ke7 {[%emt 0:03:53]} 46. Kxd3 {[%emt 0:00:00]} a5 {[%emt 0:00:51]} 47. Kd4 {[%emt 0:00:00]} a4 {[%emt 0:01:33]} 48. g4 {[%emt 0:00:00]} Nd7 {[%emt 0:03:52]} 49. e5 {[%emt 0:00:00]} Ba6 {[%emt 0:04:29]} 50. d6+ {[%emt 0:00:27]} Ke8 {[%emt 0:01:02]} 51. e6 {[%emt 0:00:54]} Nf6 {[%emt 0:00:45]} 52. Ne5 {[%emt 0:01:37]} fxe6 {[%emt 0:01:06]} 53. fxe6 {[%emt 0:00:07]} Bb7 {[%emt 0:00:48]} 54. Kc5 {[%emt 0:05:46]} Bd5 {[%emt 0:01:13]} 55. d7+ {[%emt 0:00:33]} Ke7 {[%emt 0:00:42]} 56. Nc6+ {[%emt 0:01:10]} Bxc6 {[%emt 0:00:15]} 57. Kxc6 {[%emt 0:00:11]} a3 {[%emt 0:00:36]} 58. h4 {[%emt 0:05:06]} g5 {[%emt 0:00:04]} 59. h5 {[%emt 0:01:54]} a2 {[%emt 0:00:34]} 60. Nb3 {[%emt 0:00:07]} Kd8 {[%emt 0:00:26]} 61. Kd6 {[%emt 0:02:40]} Ne4+ {[%emt 0:00:41]} 1-0

[Event "GER-ch Youth-U18w 2023"]
[Site "Willingen"]
[Date "2023.05.29"]
[Round "3.2"]
[White "Heutling, Elina"]
[Black "Cordes, Jule"]
[Result "1-0"]
[Annotator "NA RC"]
[ECO "C11"]
[WhiteElo "1878"]
[BlackElo "1744"]
[PlyCount "71"]
[EventDate "2022.06.05"]
[EventType "swiss"]
[EventRounds "9"]
[EventCountry "GER"]
[SourceTitle "playchess.com"]
[Source "ChessBase"]
[SourceQuality "1"]
[TimeControl "40/4500+30:900+30"]

1. e4 {[%emt 0:00:00]} e6 {[%emt 0:00:00]} 2. d4 {[%emt 0:00:00]} d5 {[%emt 0:00:00]} 3. Nc3 {[%emt 0:00:00]} Nf6 {[%emt 0:00:00]} 4. e5 {[%emt 0:00:00]} Nfd7 {[%emt 0:00:00]} 5. Nce2 {[%emt 0:00:00]} c5 {[%emt 0:00:00]} 6. c3 {[%emt 0:00:00]} Nc6 {[%emt 0:00:00]} 7. Nf3 {[%emt 0:00:00]} cxd4 {[%emt 0:00:00]} 8. cxd4 {[%emt 0:00:00]} f6 {[%emt 0:00:00]} 9. Nf4 {[%emt 0:00:00]} Bb4+ {[%emt 0:00:17]} 10. Bd2 {[%emt 0:00:00]} Qe7 {[%emt 0:01:51]} 11. Bxb4 {[%emt 0:05:07]} Qxb4+ {[%emt 0:15:44]} 12. Qd2 {[%emt 0:01:03]} Ke7 {[%emt 0:10:29]} 13. Qxb4+ {[%emt 0:12:22]} Nxb4 {[%emt 0:00:08]} 14. Kd2 {[%emt 0:01:00]} Nb6 {[%emt 0:19:21]} 15. b3 {[%emt 0:09:51]} Bd7 {[%emt 0:02:34]} 16. Nd3 {[%emt 0:07:26]} Nxd3 {[%emt 0:03:39]} 17. Bxd3 {[%emt 0:03:15]} Rac8 {[%emt 0:05:59]} 18. Rac1 {[%emt 0:10:44]} Be8 {[%emt 0:09:24]} 19. Rxc8 {[%emt 0:08:07]} Nxc8 {[%emt 0:00:06]} 20. Rc1 {[%emt 0:08:51]} Kd8 {[%emt 0:00:33]} 21. Nh4 {[%emt 0:09:52]} Ne7 {[%emt 0:01:26]} 22. exf6 {[%emt 0:03:03]} gxf6 {[%emt 0:00:08]} 23. Re1 {[%emt 0:00:05]} Kd7 {[%emt 0:03:53]} 24. g3 {[%emt 0:01:05]} Ng6 {[%emt 0:10:14]} 25. Ng2 {[%emt 0:00:05]} Kd6 {[%emt 0:00:47]} 26. f4 {[%emt 0:01:07]} f5 {[%emt 0:00:51]} 27. Rc1 {[%emt 0:02:26]} Bd7 {[%emt 0:00:28]} 28. Ke3 {[%emt 0:00:53]} Ne7 {[%emt 0:00:28]} 29. Nh4 {[%emt 0:00:23]} Ng8 {[%emt 0:00:44]} 30. Nf3 {[%emt 0:00:54]} Nf6 {[%emt 0:00:31]} 31. Ne5 {[%emt 0:01:06]} Rf8 {[%emt 0:00:33]} 32. h3 {[%emt 0:00:28]} Ne4 {[%emt 0:00:45]} 33. g4 {[%emt 0:00:46]} fxg4 {[%emt 0:00:27]} 34. hxg4 {[%emt 0:00:03]} Nf6 {[%emt 0:00:33]} 35. Rh1 {[%emt 0:00:28]} Rh8 {[%emt 0:00:32]} 36. Nf7+ {[%emt 0:00:08]} 1-0

[Event "GER-ch Youth-U18w 2023"]
[Site "Willingen"]
[Date "2023.05.29"]
[Round "3.3"]
[White "Peglau, Mirjam"]
[Black "Wagner, Margarethe"]
[Result "1/2-1/2"]
[Annotator "NA RC"]
[ECO "E06"]
[WhiteElo "1932"]
[BlackElo "1831"]
[PlyCount "71"]
[EventDate "2022.06.05"]
[EventType "swiss"]
[EventRounds "9"]
[EventCountry "GER"]
[SourceTitle "playchess.com"]
[Source "ChessBase"]
[SourceQuality "1"]
[TimeControl "40/4500+30:900+30"]

1. g3 {[%emt 0:00:00]} d5 {[%emt 0:00:00]} 2. Bg2 {[%emt 0:00:00]} Nf6 {[%emt 0:00:00]} 3. d4 {[%emt 0:00:00]} e6 {[%emt 0:00:00]} 4. Nf3 {[%emt 0:00:00]} Be7 {[%emt 0:00:00]} 5. O-O {[%emt 0:00:00]} O-O {[%emt 0:00:00]} 6. c4 {[%emt 0:00:00]} c6 {[%emt 0:00:00]} 7. Qb3 {[%emt 0:00:00]} b6 {[%emt 0:00:00]} 8. Nc3 {[%emt 0:00:00]} Ba6 {[%emt 0:03:27]} 9. cxd5 {[%emt 0:00:00]} cxd5 {[%emt 0:02:44]} 10. Ne5 {[%emt 0:13:17]} Bb7 {[%emt 0:05:43]} 11. Bg5 {[%emt 0:04:06]} Nfd7 {[%emt 0:14:24]} 12. Bxe7 {[%emt 0:02:27]} Qxe7 {[%emt 0:00:07]} 13. Nxd7 {[%emt 0:00:56]} Nxd7 {[%emt 0:01:42]} 14. Rac1 {[%emt 0:01:26]} Rfc8 {[%emt 0:08:50]} 15. Rc2 {[%emt 0:03:28]} Rc4 {[%emt 0:24:52]} 16. e3 {[%emt 0:06:32]} Rac8 {[%emt 0:00:53]} 17. Rfc1 {[%emt 0:00:48]} a6 {[%emt 0:04:50]} 18. Bf1 {[%emt 0:06:31]} R4c6 {[%emt 0:01:43]} 19. a4 {[%emt 0:06:23]} Qd6 {[%emt 0:01:43]} 20. Na2 {[%emt 0:02:25]} a5 {[%emt 0:02:29]} 21. Rxc6 {[%emt 0:15:18]} Rxc6 {[%emt 0:00:28]} 22. Rxc6 {[%emt 0:00:05]} Bxc6 {[%emt 0:01:05]} 23. Nc3 {[%emt 0:01:37]} Qc7 {[%emt 0:02:35]} 24. Nb5 {[%emt 0:02:14]} Bxb5 {[%emt 0:00:28]} 25. Qxb5 {[%emt 0:00:01]} Nf6 {[%emt 0:00:31]} 26. Kg2 {[%emt 0:01:57]} g6 {[%emt 0:00:56]} 27. Bd3 {[%emt 0:00:44]} Kf8 {[%emt 0:00:24]} 28. Qb3 {[%emt 0:02:05]} Ne8 {[%emt 0:01:46]} 29. Qc2 {[%emt 0:07:54]} Qxc2 {[%emt 0:00:24]} 30. Bxc2 {[%emt 0:00:01]} Nd6 {[%emt 0:00:08]} 31. Bd3 {[%emt 0:00:30]} Ke7 {[%emt 0:02:27]} 32. Kf3 {[%emt 0:02:00]} f6 {[%emt 0:02:00]} 33. h4 {[%emt 0:01:12]} f5 {[%emt 0:01:33]} 34. Ke2 {[%emt 0:04:18]} Nf7 {[%emt 0:01:07]} 35. f3 {[%emt 0:01:17]} Nd8 {[%emt 0:00:30]} 36. Bb5 {[%emt 0:01:02]} 1/2-1/2

[Event "GER-ch Youth-U18w 2023"]
[Site "Willingen"]
[Date "2023.05.29"]
[Round "3.4"]
[White "Albayrak, Nese Pinar"]
[Black "Reuter, Elisa"]
[Result "1-0"]
[Annotator "NA RC"]
[ECO "B33"]
[WhiteElo "1763"]
[BlackElo "1944"]
[PlyCount "128"]
[EventDate "2022.06.05"]
[EventType "swiss"]
[EventRounds "9"]
[EventCountry "GER"]
[SourceTitle "playchess.com"]
[Source "ChessBase"]
[SourceQuality "1"]
[TimeControl "40/4500+30:900+30"]

1. e4 {[%emt 0:00:00]} c5 {[%emt 0:00:00]} 2. Nf3 {[%emt 0:00:00]} Nc6 {[%emt 0:00:00]} 3. d4 {[%emt 0:00:00]} cxd4 {[%emt 0:00:00]} 4. Nxd4 {[%emt 0:00:00]} Nf6 {[%emt 0:00:00]} 5. Nc3 {[%emt 0:00:00]} e5 {[%emt 0:00:00]} 6. Ndb5 {[%emt 0:00:00]} d6 {[%emt 0:00:00]} 7. Bg5 {[%emt 0:00:00]} a6 {[%emt 0:00:00]} 8. Na3 {[%emt 0:00:00]} b5 {[%emt 0:00:00]} 9. Nd5 {[%emt 0:00:00]} Be7 {[%emt 0:00:00]} 10. Bxf6 {[%emt 0:00:00]} Bxf6 {[%emt 0:00:00]} 11. c3 {[%emt 0:00:00]} Rb8 {[%emt 0:00:00]} 12. Nc2 {[%emt 0:00:00]} Bg5 {[%emt 0:00:00]} 13. Be2 {[%emt 0:06:04]} O-O {[%emt 0:00:00]} 14. O-O {[%emt 0:04:15]} Be6 {[%emt 0:00:00]} 15. Bf3 {[%emt 0:08:32]} a5 {[%emt 0:03:29]} 16. Nce3 {[%emt 0:03:59]} Ne7 {[%emt 0:04:13]} 17. Qd3 {[%emt 0:05:46]} Bxe3 {[%emt 0:14:45]} 18. Nxe3 {[%emt 0:04:20]} Qc7 {[%emt 0:05:06]} 19. Bg4 {[%emt 0:05:31]} Bc4 {[%emt 0:07:58]} 20. Nxc4 {[%emt 0:00:58]} bxc4 {[%emt 0:00:07]} 21. Qd2 {[%emt 0:04:48]} Rb6 {[%emt 0:05:16]} 22. Rab1 {[%emt 0:08:36]} Rfb8 {[%emt 0:18:08]} 23. Rfd1 {[%emt 0:06:30]} a4 {[%emt 0:04:42]} 24. Qc2 {[%emt 0:03:23]} Qc6 {[%emt 0:03:15]} 25. Be2 {[%emt 0:04:27]} h6 {[%emt 0:03:33]} 26. f4 {[%emt 0:03:44]} Qc5+ {[%emt 0:05:35]} 27. Kh1 {[%emt 0:00:36]} a3 {[%emt 0:00:59]} 28. fxe5 {[%emt 0:06:49]} dxe5 {[%emt 0:01:33]} 29. b4 {[%emt 0:06:42]} cxb3 {[%emt 0:00:16]} 30. axb3 {[%emt 0:00:06]} Rf6 {[%emt 0:08:35]} 31. Rf1 {[%emt 0:00:54]} Rbb6 {[%emt 0:00:49]} 32. Ra1 {[%emt 0:01:44]} Ng6 {[%emt 0:01:20]} 33. Bc4 {[%emt 0:03:33]} Rbd6 {[%emt 0:01:35]} 34. Rxf6 {[%emt 0:00:41]} Rxf6 {[%emt 0:00:05]} 35. Rf1 {[%emt 0:00:13]} Qe3 {[%emt 0:00:59]} 36. Rxf6 {[%emt 0:00:35]} gxf6 {[%emt 0:00:05]} 37. g3 {[%emt 0:00:40]} a2 {[%emt 0:00:37]} 38. Qxa2 {[%emt 0:00:30]} Qxc3 {[%emt 0:00:22]} 39. Qa8+ {[%emt 0:00:26]} Kg7 {[%emt 0:00:06]} 40. Qd5 {[%emt 0:00:35]} Nh8 {[%emt 0:00:52]} 41. Qd3 {[%emt 0:00:00]} Qe1+ {[%emt 0:00:00]} 42. Kg2 {[%emt 0:00:00]} Ng6 {[%emt 0:00:00]} 43. Qd5 {[%emt 0:00:00]} Nh8 {[%emt 0:00:00]} 44. h4 {[%emt 0:01:13]} h5 {[%emt 0:00:00]} 45. Qd3 {[%emt 0:02:52]} Ng6 {[%emt 0:00:00]} 46. Qe2 {[%emt 0:00:21]} Qxe2+ {[%emt 0:00:00]} 47. Bxe2 {[%emt 0:00:05]} Kh6 {[%emt 0:00:00]} 48. Kf2 {[%emt 0:04:59]} Ne7 {[%emt 0:00:00]} 49. Bc4 {[%emt 0:00:29]} Kg6 {[%emt 0:00:00]} 50. Bd5 {[%emt 0:01:25]} Nc8 {[%emt 0:08:40]} 51. Kf3 {[%emt 0:02:44]} Nd6 {[%emt 0:01:06]} 52. Bc6 {[%emt 0:01:31]} f5 {[%emt 0:00:37]} 53. b4 {[%emt 0:01:08]} fxe4+ {[%emt 0:00:13]} 54. Bxe4+ {[%emt 0:00:35]} f5 {[%emt 0:01:22]} 55. Bc6 {[%emt 0:00:55]} Nc4 {[%emt 0:01:41]} 56. Be8+ {[%emt 0:01:41]} Kh6 {[%emt 0:00:12]} 57. Bf7 {[%emt 0:00:53]} Nb6 {[%emt 0:00:26]} 58. b5 {[%emt 0:00:42]} Na8 {[%emt 0:00:44]} 59. Bd5 {[%emt 0:00:19]} Nb6 {[%emt 0:00:05]} 60. Bf7 {[%emt 0:00:10]} Na8 {[%emt 0:00:11]} 61. Ke3 {[%emt 0:00:56]} Nb6 {[%emt 0:00:05]} 62. Kd3 {[%emt 0:00:32]} Na8 {[%emt 0:01:00]} 63. Kc4 {[%emt 0:00:19]} f4 {[%emt 0:00:26]} 64. gxf4 {[%emt 0:00:23]} exf4 {[%emt 0:00:04]} 1-0

[Event "GER-ch Youth-U18w 2023"]
[Site "Willingen"]
[Date "2023.05.29"]
[Round "3.5"]
[White "Buchholz, Maja Patricia"]
[Black "Petersen, Sophie"]
[Result "1-0"]
[Annotator "NA COMBH"]
[ECO "A25"]
[WhiteElo "1899"]
[BlackElo "1763"]
[PlyCount "119"]
[EventDate "2022.06.05"]
[EventType "swiss"]
[EventRounds "9"]
[EventCountry "GER"]
[SourceTitle "playchess.com"]
[Source "ChessBase"]
[SourceQuality "1"]
[TimeControl "40/4500+30:900+30"]

1. c4 {[%emt 0:00:00]} e5 {[%emt 0:00:00]} 2. g3 {[%emt 0:00:00]} Nc6 {[%emt 0:00:00]} 3. Bg2 {[%emt 0:00:00]} Bc5 {[%emt 0:00:00]} 4. Nc3 {[%emt 0:00:00]} d6 {[%emt 0:00:00]} 5. e3 {[%emt 0:00:00]} a6 {[%emt 0:00:00]} 6. Nge2 {[%emt 0:00:00]} Nf6 {[%emt 0:00:00]} 7. b3 {[%emt 0:00:00]} O-O {[%emt 0:00:00]} 8. Bb2 {[%emt 0:00:00]} Ba7 {[%emt 0:00:00]} 9. O-O {[%emt 0:00:00]} Bf5 {[%emt 0:00:00]} 10. d4 {[%emt 0:00:00]} exd4 {[%emt 0:00:00]} 11. Nxd4 {[%emt 0:00:00]} Nxd4 {[%emt 0:00:00]} 12. exd4 {[%emt 0:00:00]} Rb8 {[%emt 0:00:00]} 13. Qd2 {[%emt 0:12:24]} Qd7 {[%emt 0:00:04]} 14. Rfe1 {[%emt 0:01:12]} b5 {[%emt 0:06:17]} 15. Nd5 {[%emt 0:13:57]} Nxd5 {[%emt 0:04:13]} 16. cxd5 {[%emt 0:01:33]} Rfe8 {[%emt 0:06:15]} 17. Rac1 {[%emt 0:11:37]} Bb6 {[%emt 0:08:31]} 18. f3 {[%emt 0:09:37]} Rxe1+ {[%emt 0:09:36]} 19. Qxe1 {[%emt 0:00:51]} Re8 {[%emt 0:01:47]} 20. Qd2 {[%emt 0:02:31]} Qe7 {[%emt 0:05:09]} 21. Kf2 {[%emt 0:01:57]} Bd7 {[%emt 0:07:33]} 22. f4 {[%emt 0:08:49]} Qf6 {[%emt 0:03:01]} 23. Bf3 {[%emt 0:02:05]} h6 {[%emt 0:04:11]} 24. Kg2 {[%emt 0:04:06]} Qf5 {[%emt 0:08:20]} 25. Bc3 {[%emt 0:04:17]} Qf6 {[%emt 0:03:02]} 26. Rd1 {[%emt 0:02:42]} g5 {[%emt 0:04:04]} 27. fxg5 {[%emt 0:03:29]} Qxg5 {[%emt 0:01:05]} 28. Qxg5+ {[%emt 0:04:57]} hxg5 {[%emt 0:00:06]} 29. g4 {[%emt 0:01:02]} f6 {[%emt 0:01:21]} 30. Kf2 {[%emt 0:00:23]} a5 {[%emt 0:01:58]} 31. Rd3 {[%emt 0:01:21]} b4 {[%emt 0:00:50]} 32. Bb2 {[%emt 0:00:12]} Kg7 {[%emt 0:02:54]} 33. Re3 {[%emt 0:00:53]} Rxe3 {[%emt 0:04:42]} 34. Kxe3 {[%emt 0:00:10]} a4 {[%emt 0:00:51]} 35. h3 {[%emt 0:01:07]} a3 {[%emt 0:02:27]} 36. Bc1 {[%emt 0:00:04]} Bb5 {[%emt 0:00:12]} 37. Bg2 {[%emt 0:01:06]} Kg6 {[%emt 0:00:34]} 38. Be4+ {[%emt 0:00:21]} Kf7 {[%emt 0:00:47]} 39. Bd2 {[%emt 0:00:34]} Ba5 {[%emt 0:00:22]} 40. Bg2 {[%emt 0:00:21]} Kg6 {[%emt 0:01:25]} 41. Be4+ {[%emt 0:00:00]} Kf7 {[%emt 0:00:00]} 42. Bd3 {[%emt 0:00:00]} Bd7 {[%emt 0:00:00]} 43. Kf3 {[%emt 0:00:00]} c6 {[%emt 0:00:00]} 44. Bc4 {[%emt 0:04:23]} Ke7 {[%emt 0:00:00]} 45. dxc6 {[%emt 0:01:24]} Bxc6+ {[%emt 0:00:00]} 46. d5 {[%emt 0:00:09]} Bd7 {[%emt 0:00:24]} 47. Bd3 {[%emt 0:04:15]} Kf7 {[%emt 0:01:12]} 48. Ke4 {[%emt 0:02:47]} Bb6 {[%emt 0:05:32]} 49. Bxb4 {[%emt 0:00:24]} Bc5 {[%emt 0:00:07]} 50. Bd2 {[%emt 0:02:22]} Ke7 {[%emt 0:05:47]} 51. b4 {[%emt 0:00:14]} Bb6 {[%emt 0:02:09]} 52. Bc1 {[%emt 0:00:11]} f5+ {[%emt 0:04:05]} 53. gxf5 {[%emt 0:02:59]} Kf6 {[%emt 0:00:09]} 54. Kf3 {[%emt 0:00:14]} Bxf5 {[%emt 0:01:17]} 55. Bxf5 {[%emt 0:00:56]} Kxf5 {[%emt 0:00:05]} 56. Bxa3 {[%emt 0:00:03]} Ke5 {[%emt 0:00:10]} 57. Bc1 {[%emt 0:00:49]} Bd8 {[%emt 0:00:40]} 58. a4 {[%emt 0:01:14]} Kxd5 {[%emt 0:00:15]} 59. a5 {[%emt 0:00:16]} Kc4 {[%emt 0:00:11]} 60. a6 {[%emt 0:00:33]} 1-0

[Event "GER-ch Youth-U18w 2023"]
[Site "Willingen"]
[Date "2023.05.29"]
[Round "3.6"]
[White "Kalina, Lena"]
[Black "Zoellner, Bente"]
[Result "1-0"]
[Annotator "NA RC"]
[ECO "E60"]
[WhiteElo "1776"]
[BlackElo "1700"]
[PlyCount "53"]
[EventDate "2022.06.05"]
[EventType "swiss"]
[EventRounds "9"]
[EventCountry "GER"]
[SourceTitle "playchess.com"]
[Source "ChessBase"]
[SourceQuality "1"]
[TimeControl "40/4500+30:900+30"]

1. c4 {[%emt 0:00:00]} c5 {[%emt 0:00:00]} 2. Nf3 {[%emt 0:00:00]} Nf6 {[%emt 0:00:00]} 3. Nc3 {[%emt 0:00:00]} Nc6 {[%emt 0:00:00]} 4. d4 {[%emt 0:00:00]} cxd4 {[%emt 0:00:00]} 5. Nxd4 {[%emt 0:00:00]} d6 {[%emt 0:00:00]} 6. g3 {[%emt 0:00:00]} g6 {[%emt 0:00:00]} 7. Bg2 {[%emt 0:00:00]} Bd7 {[%emt 0:00:00]} 8. b3 {[%emt 0:00:42]} Bg7 {[%emt 0:00:00]} 9. Bb2 {[%emt 0:01:20]} O-O {[%emt 0:00:00]} 10. O-O {[%emt 0:02:20]} Rb8 {[%emt 0:00:00]} 11. Nc2 {[%emt 0:17:26]} Qc8 {[%emt 0:00:39]} 12. Re1 {[%emt 0:04:37]} Bh3 {[%emt 0:02:13]} 13. Bh1 {[%emt 0:00:40]} Ng4 {[%emt 0:09:14]} 14. e4 {[%emt 0:07:30]} Nce5 {[%emt 0:06:22]} 15. Nd5 {[%emt 0:03:37]} Re8 {[%emt 0:04:43]} 16. Bd4 {[%emt 0:01:24]} Nf6 {[%emt 0:09:37]} 17. Nce3 {[%emt 0:07:36]} Nc6 {[%emt 0:04:33]} 18. Nxf6+ {[%emt 0:02:26]} exf6 {[%emt 0:01:38]} 19. Bb2 {[%emt 0:03:51]} Rd8 {[%emt 0:01:38]} 20. Nd5 {[%emt 0:10:57]} Qe6 {[%emt 0:06:07]} 21. Qc2 {[%emt 0:00:25]} f5 {[%emt 0:04:50]} 22. Bxg7 {[%emt 0:01:35]} Kxg7 {[%emt 0:00:10]} 23. exf5 {[%emt 0:01:08]} Qxf5 {[%emt 0:00:47]} 24. Qc3+ {[%emt 0:02:46]} f6 {[%emt 0:01:39]} 25. Re3 {[%emt 0:09:07]} Ne5 {[%emt 0:05:47]} 26. f4 {[%emt 0:02:48]} Nd7 {[%emt 0:11:17]} 27. Re7+ {[%emt 0:01:09]} 1-0

[Event "GER-ch Youth-U18w 2023"]
[Site "Willingen"]
[Date "2023.05.29"]
[Round "3.7"]
[White "Glowiak, Alexandra"]
[Black "Werner, Rosalie"]
[Result "1-0"]
[Annotator "NA RC"]
[ECO "B95"]
[WhiteElo "1660"]
[BlackElo "1751"]
[PlyCount "65"]
[EventDate "2022.06.05"]
[EventType "swiss"]
[EventRounds "9"]
[EventCountry "GER"]
[SourceTitle "playchess.com"]
[Source "ChessBase"]
[SourceQuality "1"]
[TimeControl "40/4500+30:900+30"]

1. e4 {[%emt 0:00:00]} c5 {[%emt 0:00:00]} 2. Nf3 {[%emt 0:00:00]} d6 {[%emt 0:00:00]} 3. d4 {[%emt 0:00:00]} cxd4 {[%emt 0:00:00]} 4. Nxd4 {[%emt 0:00:00]} Nf6 {[%emt 0:00:00]} 5. Nc3 {[%emt 0:00:00]} a6 {[%emt 0:00:00]} 6. Bg5 {[%emt 0:00:00]} e6 {[%emt 0:00:00]} 7. Be2 {[%emt 0:00:31]} Qc7 {[%emt 0:00:00]} 8. Qd2 {[%emt 0:08:40]} b5 {[%emt 0:04:53]} 9. a3 {[%emt 0:02:06]} Be7 {[%emt 0:03:24]} 10. f3 {[%emt 0:12:57]} Nbd7 {[%emt 0:17:00]} 11. a4 {[%emt 0:06:31]} b4 {[%emt 0:07:38]} 12. Na2 {[%emt 0:04:22]} a5 {[%emt 0:02:04]} 13. Bb5 {[%emt 0:05:43]} Bb7 {[%emt 0:08:11]} 14. c3 {[%emt 0:07:51]} d5 {[%emt 0:14:50]} 15. exd5 {[%emt 0:08:14]} Bxd5 {[%emt 0:01:05]} 16. O-O {[%emt 0:02:40]} O-O {[%emt 0:09:08]} 17. Bxf6 {[%emt 0:07:43]} Nxf6 {[%emt 0:01:02]} 18. Nc1 {[%emt 0:02:04]} bxc3 {[%emt 0:04:04]} 19. bxc3 {[%emt 0:00:53]} Rac8 {[%emt 0:02:10]} 20. Nce2 {[%emt 0:00:47]} Bc5 {[%emt 0:01:10]} 21. Kh1 {[%emt 0:00:19]} Rfd8 {[%emt 0:00:49]} 22. Qb2 {[%emt 0:05:13]} Bxd4 {[%emt 0:03:01]} 23. cxd4 {[%emt 0:00:08]} Qc2 {[%emt 0:00:22]} 24. Qxc2 {[%emt 0:01:39]} Rxc2 {[%emt 0:00:05]} 25. Rfc1 {[%emt 0:00:38]} Rcc8 {[%emt 0:06:30]} 26. Kg1 {[%emt 0:01:45]} Bb7 {[%emt 0:00:26]} 27. Rxc8 {[%emt 0:00:58]} Bxc8 {[%emt 0:00:33]} 28. Rc1 {[%emt 0:00:56]} Nd5 {[%emt 0:00:26]} 29. Rc5 {[%emt 0:00:57]} Nb4 {[%emt 0:00:33]} 30. Kf1 {[%emt 0:02:56]} Kf8 {[%emt 0:00:30]} 31. Rc7 {[%emt 0:01:23]} Na6 {[%emt 0:00:35]} 32. Ra7 {[%emt 0:00:37]} Nc7 {[%emt 0:00:30]} 33. Rxc7 {[%emt 0:00:13]} 1-0

[Event "GER-ch Youth-U18w 2023"]
[Site "Willingen"]
[Date "2023.05.29"]
[Round "3.8"]
[White "Adelhardt, Lisa"]
[Black "Foltin, Alica"]
[Result "1-0"]
[Annotator "NA RC"]
[ECO "B07"]
[WhiteElo "1656"]
[BlackElo "1540"]
[PlyCount "71"]
[EventDate "2022.06.05"]
[EventType "swiss"]
[EventRounds "9"]
[EventCountry "GER"]
[SourceTitle "playchess.com"]
[Source "ChessBase"]
[SourceQuality "1"]
[TimeControl "40/4500+30:900+30"]

1. e4 {[%emt 0:00:00]} d6 {[%emt 0:00:00]} 2. d4 {[%emt 0:00:00]} Nf6 {[%emt 0:00:00]} 3. Nc3 {[%emt 0:00:00]} Nbd7 {[%emt 0:00:00]} 4. Nge2 {[%emt 0:00:00]} e5 {[%emt 0:00:00]} 5. h3 {[%emt 0:00:00]} Be7 {[%emt 0:00:00]} 6. g4 {[%emt 0:00:00]} h6 {[%emt 0:00:00]} 7. Bg2 {[%emt 0:00:00]} Nh7 {[%emt 0:00:00]} 8. Be3 {[%emt 0:00:00]} c6 {[%emt 0:04:07]} 9. Ng3 {[%emt 0:00:00]} b5 {[%emt 0:05:04]} 10. Nce2 {[%emt 0:00:00]} Nb6 {[%emt 0:04:19]} 11. b3 {[%emt 0:03:23]} Qc7 {[%emt 0:04:54]} 12. Qd2 {[%emt 0:04:04]} a5 {[%emt 0:02:00]} 13. O-O {[%emt 0:05:30]} g5 {[%emt 0:05:00]} 14. Nh5 {[%emt 0:09:09]} Rg8 {[%emt 0:02:52]} 15. Neg3 {[%emt 0:04:02]} Nf6 {[%emt 0:17:42]} 16. Rfd1 {[%emt 0:12:10]} Nxh5 {[%emt 0:02:43]} 17. Nxh5 {[%emt 0:00:16]} Rg6 {[%emt 0:05:52]} 18. dxe5 {[%emt 0:10:05]} dxe5 {[%emt 0:00:15]} 19. Bf1 {[%emt 0:02:37]} a4 {[%emt 0:03:25]} 20. Qc3 {[%emt 0:01:50]} Bd6 {[%emt 0:06:53]} 21. Rxd6 {[%emt 0:10:40]} Qxd6 {[%emt 0:07:58]} 22. Bxb6 {[%emt 0:00:17]} b4 {[%emt 0:01:34]} 23. Qe3 {[%emt 0:04:25]} axb3 {[%emt 0:02:44]} 24. cxb3 {[%emt 0:01:55]} Rb8 {[%emt 0:01:01]} 25. Bc5 {[%emt 0:03:24]} Qc7 {[%emt 0:00:34]} 26. Bc4 {[%emt 0:03:05]} Be6 {[%emt 0:02:43]} 27. Bxe6 {[%emt 0:01:25]} fxe6 {[%emt 0:00:21]} 28. Rd1 {[%emt 0:01:45]} Qa5 {[%emt 0:01:52]} 29. Rd2 {[%emt 0:03:09]} Rb7 {[%emt 0:02:00]} 30. Kg2 {[%emt 0:03:42]} Rb5 {[%emt 0:01:24]} 31. Bd6 {[%emt 0:00:34]} Rb7 {[%emt 0:00:47]} 32. Rc2 {[%emt 0:01:30]} Qa6 {[%emt 0:00:45]} 33. Bxe5 {[%emt 0:00:18]} Rb5 {[%emt 0:01:14]} 34. Qd4 {[%emt 0:01:19]} Qa5 {[%emt 0:01:25]} 35. Nf6+ {[%emt 0:00:46]} Kf8 {[%emt 0:00:27]} 36. Qd6+ {[%emt 0:00:33]} 1-0